fUST/lending_fUST_20250112
["ID","MTS","AMOUNT","RATE_DAILY","PERIOD"]
[348623536,1736683843512,-376.383463,0.00019726,2]
[348623539,1736683843524,-376.383463,0.00019726,2]
[348623541,1736683843534,-803.18,0.00019726,3]
[348623543,1736683843543,-376.383463,0.00019726,2]
[348623545,1736683843552,-376.383463,0.00019726,2]
[348623547,1736683843561,-500.0,0.00019726,3]
[348623549,1736683843571,-4294.92,0.00019726,3]
[348623551,1736683843581,-1338.59,0.00019726,3]
[348623553,1736683843590,-151.0,0.00019726,2]
[348623555,1736683843601,-500.0,0.00019726,3]
[348623556,1736683843610,-151.0,0.00019726,2]
[348623559,1736683843620,-500.0,0.00019726,3]
[348623561,1736683843629,-500.0,0.00019726,3]
[348623563,1736683843639,-500.0,0.00019726,3]
[348623565,1736683843648,-500.0,0.00019726,3]
[348623567,1736683843657,-500.0,0.00019726,3]
[348623569,1736683843667,-900.64,0.00019726,3]
[348623571,1736683843677,-500.0,0.00019726,3]
[348623573,1736683843686,-1175.1,0.00019726,3]
[348623575,1736683843697,-500.0,0.00019726,3]
[348623577,1736683843706,-500.0,0.00019726,3]
[348623579,1736683843716,-2373.33,0.00019726,3]
[348623581,1736683843725,-500.0,0.00019726,3]
[348623583,1736683843734,-504.85,0.00019726,3]
[348623585,1736683843743,-2842.96,0.00019726,3]
[348623587,1736683843752,-1489.31,0.00019726,3]
[348623589,1736683843762,-848.27,0.00019726,3]
[348623591,1736683843771,-427.04093804,0.00019726,3]
[348623593,1736683843780,-500.0,0.00019726,3]
[348623595,1736683843790,-500.0,0.00019726,3]
[348623597,1736683843799,-577.01,0.00019726,3]
[348623598,1736683843810,-500.0,0.00019726,3]
[348623601,1736683843819,-1201.29,0.00019726,3]
[348623602,1736683843829,-543.05,0.00019726,3]
[348623604,1736683843838,-500.0,0.00019726,3]
[348623606,1736683843847,-842.85,0.00019726,3]
[348623608,1736683843856,-500.0,0.00019726,3]
[348623610,1736683843866,-500.0,0.00019726,3]
[348623612,1736683843875,-1191.41,0.00019726,3]
[348623614,1736683843885,-1240.25,0.00019726,3]
[348623616,1736683843895,-1215.82,0.00019726,3]
[348623619,1736683843904,-808.24,0.00019726,3]
[348623620,1736683843913,-500.0,0.00019726,3]
[348623622,1736683843923,-2791.02,0.00019726,3]
[348623624,1736683843932,-6261.01,0.00019726,3]
[348623626,1736683843942,-500.0,0.00019726,3]
[348623627,1736683843951,-206.94697568,0.00019726,3]
[348623628,1736683843963,-705.96,0.00019726,3]
[348623629,1736683843978,-15.32302432,0.00019726,3]
[348623630,1736683843987,-500.0,0.00019726,3]
[348623631,1736683843995,-500.0,0.00019726,3]
[348623632,1736683844005,-513.67798133,0.00019726,3]
[348623633,1736683844014,-1240.54,0.00019726,3]
[348623634,1736683844023,-1021.55,0.00019726,3]
[348623635,1736683844032,-500.0,0.00019726,3]
[348623636,1736683844041,-577.83,0.00019726,3]
[348623637,1736683844050,-302.66710251,0.0001976,2]
[348623638,1736683844059,-420.0,0.00019772,2]
[348623639,1736683844069,-500.0,0.00019773,2]
[348623640,1736683844078,-500.0,0.00019773,2]
[348623641,1736683844087,-500.0,0.00019773,2]
[348623642,1736683844096,-500.0,0.00019773,2]
[348623643,1736683844105,-500.0,0.00019773,2]
[348623645,1736683844115,-500.47870859,0.00019773,2]
[348623647,1736683844124,-197.0274521,0.00019799,2]
[348623649,1736683844133,-2018.6,0.000198,2]
[348623651,1736683844142,-151.0,0.00019804,2]
[348623653,1736683844152,-151.0,0.00019804,2]
[348623655,1736683844161,-151.0,0.00019804,2]
[348623657,1736683844170,-151.0,0.00019804,2]
[348623659,1736683844179,-151.0,0.00019804,2]
[348623661,1736683844189,-151.0,0.00019804,2]
[348623663,1736683844198,-151.0,0.00019804,2]
[348623664,1736683844207,-156.15,0.00019804,2]
[348623666,1736683844216,-260.0,0.00019847,2]
[348623668,1736683844226,-323.87214627,0.000199,2]
[348623671,1736683844236,-151.0,0.00019913,2]
[348623673,1736683844245,-151.0,0.00019913,2]
[348623675,1736683844254,-151.0,0.00019913,2]
[348623677,1736683844264,-151.0,0.00019913,2]
[348623679,1736683844273,-151.0,0.00019913,2]
[348623681,1736683844282,-151.0,0.00019913,2]
[348623682,1736683844292,-151.0,0.00019913,2]
[348623684,1736683844302,-151.0,0.00019913,2]
[348623686,1736683844311,-151.0,0.00019913,2]
[348623689,1736683844321,-151.0,0.00019913,2]
[348623690,1736683844330,-151.0,0.00019913,2]
[348623693,1736683844339,-151.0,0.00019913,2]
[348623694,1736683844349,-151.0,0.00019913,2]
[348623696,1736683844359,-151.0,0.00019913,2]
[348623698,1736683844368,-151.0,0.00019913,2]
[348623700,1736683844378,-151.0,0.00019913,2]
[348623702,1736683844387,-151.0,0.00019913,2]
[348623705,1736683844397,-151.0,0.00019913,2]
[348623707,1736683844406,-151.0,0.00019913,2]
[348623709,1736683844417,-151.0,0.00019913,2]
[348623711,1736683844426,-151.0,0.00019913,2]
[348623712,1736683844436,-151.0,0.00019913,2]
[348623714,1736683844445,-151.0,0.00019913,2]
[348623716,1736683844455,-151.0,0.00019913,2]
[348623719,1736683844465,-151.0,0.00019913,2]
[348623721,1736683844474,-151.0,0.00019913,2]
[348623722,1736683844483,-151.0,0.00019913,2]
[348623724,1736683844492,-151.0,0.00019913,2]
[348623727,1736683844502,-151.0,0.00019913,2]
[348623728,1736683844512,-151.0,0.00019913,2]
[348623731,1736683844523,-151.0,0.00019913,2]
[348623732,1736683844533,-151.0,0.00019913,2]
[348623734,1736683844543,-151.0,0.00019913,2]
[348623736,1736683844552,-151.0,0.00019913,2]
[348623738,1736683844561,-151.0,0.00019913,2]
[348623740,1736683844571,-151.0,0.00019913,2]
[348623742,1736683844580,-151.0,0.00019913,2]
[348623744,1736683844589,-151.0,0.00019913,2]
[348623746,1736683844599,-151.0,0.00019913,2]
[348623748,1736683844608,-151.0,0.00019913,2]
[348623750,1736683844617,-151.0,0.00019913,2]
[348623752,1736683844626,-151.0,0.00019913,2]
[348623754,1736683844635,-266.0,0.00019913,2]
[348623756,1736683844644,-165.0,0.00019913,2]
[348623757,1736683844655,-165.0,0.00019913,2]
[348623760,1736683844665,-165.0,0.00019913,2]
[348623762,1736683844674,-162.16,0.00019913,2]
[348623764,1736683844683,-155.0,0.00019913,2]
[348623765,1736683844693,-155.0,0.00019913,2]
[348623767,1736683844702,-155.0,0.00019913,2]
[348623769,1736683844711,-155.0,0.00019913,2]
[348623771,1736683844720,-155.0,0.00019913,2]
[348623773,1736683844730,-155.0,0.00019913,2]
[348623775,1736683844739,-155.0,0.00019913,2]
[348623777,1736683844748,-155.0,0.00019913,2]
[348623779,1736683844758,-155.0,0.00019913,2]
[348623781,1736683844767,-155.0,0.00019913,2]
[348623783,1736683844777,-155.0,0.00019913,2]
[348623785,1736683844787,-155.0,0.00019913,2]
[348623787,1736683844796,-155.0,0.00019913,2]
[348623789,1736683844806,-155.0,0.00019913,2]
[348623791,1736683844815,-155.0,0.00019913,2]
[348623793,1736683844824,-155.0,0.00019913,2]
[348623795,1736683844833,-155.0,0.00019913,2]
[348623797,1736683844842,-155.0,0.00019913,2]
[348623799,1736683844851,-210.0,0.00019913,2]
[348623801,1736683844860,-223.7765888,0.00019945,2]
[348623803,1736683844869,-454.00065376,0.0001995,4]
[348623805,1736683844878,-376.383463,0.00019959,2]
[348623807,1736683844887,-376.383463,0.00019959,2]
[348623809,1736683844896,-809.92204239,0.00019959,2]
[348623811,1736683844905,-269.0301781,0.00019973,2]
[348623813,1736683844914,-18130.45717547,0.0002,5]
[348623815,1736683844923,-17909.95048863,0.0002,5]
[348623817,1736683844935,-11547.90458304,0.0002,5]
[348623819,1736683844945,-7884.68342783,0.0002,2]
[348623821,1736683844954,-6998.02,0.0002,2]
[348623823,1736683844964,-2682.73,0.0002,2]
[348623825,1736683844973,-2208.85525023,0.0002,2]
[348623827,1736683844983,-49963.96541093,0.0002,5]
[348623829,1736683844994,-37617.78720613,0.0002,5]
[348623832,1736683845009,-615.89240559,0.0002,5]
[348624355,1736684070692,178.474312,0.00013973,2]
[348624356,1736684185414,-2470.0,0.00018422,2]
[348624362,1736684801095,-223.14171375,0.00017044,2]
[348624407,1736685032520,-5000.0,0.00016538,2]
[348624409,1736685032530,-5000.0,0.00016705,2]
[348624411,1736685032539,-300.0,0.00017563,2]
[348624413,1736685032549,-4938.5246605,0.00017566,2]
[348624415,1736685032559,-2050.7428736,0.00017613,2]
[348624417,1736685032568,-653.9772649,0.00017736,2]
[348624419,1736685032578,-338.757753,0.0001782,2]
[348624421,1736685032587,-163.75019057,0.00018,2]
[348624423,1736685032597,-1461.13672781,0.00018,2]
[348624425,1736685032609,-2058.31370974,0.00018,2]
[348624427,1736685032618,-20546.189476,0.0001807,2]
[348624428,1736685032627,-1253.84295805,0.00018778,2]
[348624430,1736685032637,-153.0,0.00018878,2]
[348624431,1736685032647,-306.0,0.00018878,2]
[348624432,1736685032656,-296.6602179,0.00018878,2]
[348624434,1736685032665,-362.9332347,0.00018878,2]
[348624436,1736685032675,-1032.918781,0.000189,2]
[348624437,1736685032684,-214.7427429,0.00018978,2]
[348624438,1736685032693,-500.0,0.00019,7]
[348624439,1736685032704,-500.0,0.00019,7]
[348624440,1736685032713,-500.0,0.00019,7]
[348624441,1736685032722,-500.0,0.00019,7]
[348624442,1736685032732,-500.0,0.00019,7]
[348624443,1736685032742,-500.0,0.00019,7]
[348624444,1736685032751,-500.0,0.00019,7]
[348624446,1736685032760,-500.0,0.00019,7]
[348624448,1736685032770,-500.0,0.00019,7]
[348624449,1736685032781,-349.91,0.00019,7]
[348624450,1736685032790,-154.84,0.00019,2]
[348624451,1736685032801,-516.006,0.00019,2]
[348624452,1736685032811,-204.4067168,0.00019,2]
[348624453,1736685032821,-307.6095688,0.00019078,2]
[348624454,1736685032831,-158.0704113,0.00019078,2]
[348624455,1736685032840,-151.75560286,0.00019166,2]
[348624456,1736685032850,-420.0,0.00019172,2]
[348624457,1736685032860,-267.29202658,0.00019173,2]
[348624458,1736685032870,-500.0,0.00019173,2]
[348624459,1736685032880,-178.23632573,0.00019173,2]
[348624460,1736685032890,-500.0,0.00019173,2]
[348624461,1736685032899,-500.0,0.00019173,2]
[348624462,1736685032908,-268.75380419,0.00019173,2]
[348624463,1736685032918,-175.10032979,0.00019173,2]
[348624464,1736685032927,-540.95474537,0.00019177,2]
[348624465,1736685032936,-185.90126378,0.00019177,2]
[348624466,1736685032946,-200.0,0.00019177,2]
[348624467,1736685032956,-651.43316315,0.00019177,2]
[348624468,1736685032965,-500.0,0.00019178,2]
[348624469,1736685032974,-252.22687799,0.00019178,2]
[348624470,1736685032983,-500.0,0.00019178,2]
[348624471,1736685032993,-500.0,0.00019178,2]
[348624472,1736685033002,-500.0,0.00019178,2]
[348624473,1736685033011,-500.0,0.00019178,2]
[348624474,1736685033021,-325.13615439,0.00019178,2]
[348624475,1736685033031,-709.54,0.00019178,2]
[348624476,1736685033040,-500.0,0.00019178,2]
[348624477,1736685033049,-500.0,0.00019178,2]
[348624478,1736685033059,-500.0,0.00019178,2]
[348624479,1736685033070,-500.0,0.00019178,2]
[348624480,1736685033080,-614.01,0.00019178,2]
[348624481,1736685033089,-500.0,0.00019178,2]
[348624482,1736685033099,-500.0,0.00019178,2]
[348624483,1736685033108,-500.0,0.00019178,2]
[348624484,1736685033118,-368.76241602,0.00019178,2]
[348624485,1736685033127,-767.27,0.00019178,2]
[348624486,1736685033137,-500.0,0.00019178,2]
[348624487,1736685033147,-502.74321858,0.00019178,2]
[348624488,1736685033156,-500.0,0.00019178,2]
[348624489,1736685033166,-500.0,0.00019178,2]
[348624490,1736685033175,-500.0,0.00019178,2]
[348624491,1736685033185,-1148.3730114,0.00019178,2]
[348624492,1736685033197,-1339.2169886,0.00019178,2]
[348624493,1736685033207,-500.0,0.00019178,2]
[348624494,1736685033216,-667.42,0.00019178,2]
[348624495,1736685033226,-500.0,0.00019178,2]
[348624496,1736685033235,-99.38076953,0.00019178,2]
[348624497,1736685033275,-2.00703648,0.00019178,2]
[348624536,1736685038351,-200.1321878,0.00019078,2]
[348624538,1736685038363,-204.38879684,0.00019177,2]
[348624540,1736685038375,-164.23034759,0.00019177,2]
[348624541,1736685038387,-282.09841802,0.00019177,2]
[348624543,1736685038399,-398.61219399,0.00019178,2]
[348624545,1736685038409,-418.58805578,0.00019178,2]
[348624551,1736685038461,-466.07194422,0.00019178,2]
[348624554,1736685038471,-500.0,0.00019178,2]
[348624556,1736685038483,-500.0,0.00019178,2]
[348624558,1736685038495,-500.0,0.00019178,2]
[348624560,1736685038506,-500.0,0.00019178,2]
[348624562,1736685038517,-500.0,0.00019178,2]
[348624565,1736685038529,-500.0,0.00019178,2]
[348624567,1736685038539,-500.0,0.00019178,2]
[348624570,1736685038550,-767.44,0.00019178,2]
[348624572,1736685038572,-500.0,0.00019178,2]
[348624575,1736685038586,-500.0,0.00019178,2]
[348624577,1736685038598,-500.0,0.00019178,2]
[348624580,1736685038611,-669.25,0.00019178,2]
[348624582,1736685038624,-737.49,0.00019178,2]
[348624585,1736685038638,-500.0,0.00019178,2]
[348624587,1736685038652,-500.0,0.00019178,2]
[348624590,1736685038666,-500.0,0.00019178,2]
[348624592,1736685038678,-500.0,0.00019178,2]
[348624595,1736685038691,-500.0,0.00019178,2]
[348624597,1736685038703,-554.83413268,0.00019178,2]
[348624599,1736685038716,-763.63,0.00019178,2]
[348624602,1736685038729,-1085.48,0.00019178,2]
[348624604,1736685038743,-500.0,0.00019178,2]
[348624607,1736685038756,-500.0,0.00019178,2]
[348624609,1736685038767,-500.0,0.00019178,2]
[348624611,1736685038778,-10881.95000497,0.00019178,2]
[348625362,1736685046348,-3323.04491963,0.00018887,2]
[348625369,1736685046405,-1676.95508037,0.00018887,2]
[348625371,1736685046414,-9135.71304972,0.00019178,2]
[348625378,1736685046465,-6195.49694531,0.00019178,2]
[348625380,1736685046474,-500.0,0.00019178,2]
[348625382,1736685046483,-1207.24,0.00019178,2]
[348625384,1736685046492,-632.35,0.00019178,2]
[348625386,1736685046501,-501.81316039,0.00019178,2]
[348625388,1736685046512,-1676.95508037,0.00019178,2]
[348625444,1736685425125,169.550596,0.00013973,2]
[348625520,1736686232784,-1226.79490063,0.00016661,2]
[348625522,1736686232794,-1715.02864027,0.00016829,2]
[348625524,1736686232803,-169.378876,0.00018178,2]
[348625526,1736686232813,-688.61252067,0.000189,2]
[348625528,1736686232822,-494.366,0.00019,2]
[348625530,1736686232831,-1097.11258825,0.00019078,2]
[348625532,1736686232840,-300.0,0.00019119,2]
[348625534,1736686232849,-8612.48287792,0.0001912,2]
[348625799,1736686238623,-1355.7023168,0.0001912,2]
[348625801,1736686238635,-500.0,0.00019173,2]
[348625804,1736686238646,-500.0,0.00019177,2]
[348625806,1736686238661,-500.0,0.00019177,2]
[348625808,1736686238671,-500.0,0.00019177,2]
[348625810,1736686238681,-500.0,0.00019177,2]
[348625813,1736686238691,-500.0,0.00019177,2]
[348625815,1736686238701,-500.0,0.00019177,2]
[348625817,1736686238711,-500.0,0.00019177,2]
[348625819,1736686238721,-500.0,0.00019177,2]
[348625821,1736686238731,-500.0,0.00019177,2]
[348625823,1736686238743,-500.0,0.00019177,2]
[348625825,1736686238755,-411.79322715,0.00019177,2]
[348625828,1736686238767,-500.0,0.00019177,2]
[348625830,1736686238778,-500.0,0.00019177,2]
[348625832,1736686238790,-500.0,0.00019177,2]
[348625834,1736686238800,-500.0,0.00019177,2]
[348625836,1736686238810,-500.0,0.00019177,2]
[348625839,1736686238821,-500.0,0.00019177,2]
[348625841,1736686238832,-500.0,0.00019177,2]
[348625843,1736686238843,-250.0,0.00019177,2]
[348625845,1736686238855,-363.57999158,0.00019177,2]
[348625847,1736686238865,-458.95430947,0.00019177,2]
[348625850,1736686238876,-200.86305859,0.00019177,2]
[348625852,1736686238886,-319.52554524,0.00019177,2]
[348625854,1736686238897,-197.46889262,0.00019177,2]
[348625856,1736686238907,-812.92538447,0.00019178,5]
[348625859,1736686238921,-15739.07413503,0.00019178,5]
[348625861,1736686238932,-14728.92753583,0.00019178,5]
[348625863,1736686238941,-184.36398426,0.00019178,2]
[348625865,1736686238953,-500.0,0.00019178,2]
[348625867,1736686238963,-500.0,0.00019178,2]
[348625869,1736686238973,-300.0,0.00019178,2]
[348625871,1736686238983,-500.0,0.00019178,2]
[348625873,1736686238993,-706.76,0.00019178,2]
[348625875,1736686239003,-500.0,0.00019178,2]
[348625878,1736686239013,-403.067421,0.00019178,2]
[348625880,1736686239024,-500.0,0.00019178,2]
[348625882,1736686239035,-500.0,0.00019178,2]
[348625884,1736686239046,-500.0,0.00019178,2]
[348625886,1736686239056,-500.0,0.00019178,2]
[348625888,1736686239067,-500.0,0.00019178,2]
[348625891,1736686239078,-500.0,0.00019178,2]
[348625893,1736686239088,-500.0,0.00019178,2]
[348625895,1736686239099,-500.0,0.00019178,2]
[348625897,1736686239109,-500.0,0.00019178,2]
[348625899,1736686239119,-500.0,0.00019178,2]
[348625901,1736686239130,-500.0,0.00019178,2]
[348625904,1736686239141,-735.3,0.00019178,2]
[348625906,1736686239151,-500.0,0.00019178,2]
[348625908,1736686239161,-500.0,0.00019178,2]
[348625910,1736686239171,-5741.83,0.00019178,2]
[348625912,1736686239182,-639.61,0.00019178,2]
[348625914,1736686239192,-500.0,0.00019178,2]
[348625916,1736686239202,-500.0,0.00019178,2]
[348625919,1736686239213,-500.0,0.00019178,2]
[348625921,1736686239223,-500.0,0.00019178,2]
[348625923,1736686239234,-847.8,0.00019178,2]
[348625925,1736686239245,-500.0,0.00019178,2]
[348625927,1736686239255,-1063.94,0.00019178,2]
[348625929,1736686239266,-500.0,0.00019178,2]
[348625931,1736686239277,-500.0,0.00019178,2]
[348625933,1736686239289,-735.47,0.00019178,2]
[348625936,1736686239299,-500.0,0.00019178,2]
[348625938,1736686239310,-500.0,0.00019178,2]
[348625940,1736686239320,-641.36,0.00019178,2]
[348625942,1736686239331,-500.0,0.00019178,2]
[348625944,1736686239341,-500.0,0.00019178,2]
[348625947,1736686239352,-500.0,0.00019178,2]
[348625949,1736686239362,-500.0,0.00019178,2]
[348625951,1736686239372,-500.0,0.00019178,2]
[348625953,1736686239382,-533.2,0.00019178,2]
[348625955,1736686239392,-500.0,0.00019178,2]
[348625957,1736686239402,-500.0,0.00019178,2]
[348625959,1736686239411,-500.0,0.00019178,2]
[348625977,1736686239563,-500.0,0.00019178,2]
[348625979,1736686239583,-500.0,0.00019178,2]
[348625982,1736686239593,-5478.39,0.00019178,2]
[348625983,1736686239603,-25120.95,0.00019178,2]
[348625986,1736686239613,-500.0,0.00019178,2]
[348625988,1736686239624,-500.0,0.00019178,2]
[348625990,1736686239633,-1029.01,0.00019178,2]
[348625992,1736686239643,-606.01,0.00019178,2]
[348625994,1736686239653,-4163.44,0.00019178,2]
[348625995,1736686239662,-1156.94,0.00019178,2]
[348625997,1736686239671,-702.78,0.00019178,2]
[348625999,1736686239681,-500.0,0.00019178,2]
[348626002,1736686239690,-1164.97,0.00019178,2]
[348626004,1736686239699,-6228.58,0.00019178,2]
[348626005,1736686239708,-998.29,0.00019178,2]
[348626008,1736686239718,-3758.06,0.00019178,2]
[348626009,1736686239727,-175.97242116,0.00019178,2]
[348626012,1736686239738,-1171.27,0.00019178,2]
[348626014,1736686239748,-500.0,0.00019178,2]
[348626016,1736686239758,-500.0,0.00019178,2]
[348626018,1736686239768,-731.81,0.00019178,2]
[348626020,1736686239777,-500.0,0.00019178,2]
[348626022,1736686239789,-500.0,0.00019178,2]
[348626024,1736686239799,-500.0,0.00019178,2]
[348626026,1736686239808,-500.0,0.00019178,2]
[348626028,1736686239817,-500.0,0.00019178,2]
[348626030,1736686239826,-500.0,0.00019178,2]
[348626032,1736686239836,-788.06,0.00019178,2]
[348626034,1736686239845,-1028.22,0.00019178,2]
[348626036,1736686239854,-500.0,0.00019178,2]
[348626038,1736686239864,-500.0,0.00019178,2]
[348626040,1736686239873,-500.0,0.00019178,2]
[348626042,1736686239883,-500.0,0.00019178,2]
[348626044,1736686239892,-2076.66,0.00019178,2]
[348626046,1736686239902,-2383.94,0.00019178,2]
[348626048,1736686239911,-500.0,0.00019178,2]
[348626050,1736686239920,-742.24,0.00019178,2]
[348626052,1736686239929,-500.0,0.00019178,2]
[348626054,1736686239939,-1303.14,0.00019178,2]
[348626056,1736686239950,-500.0,0.00019178,2]
[348626058,1736686239959,-279.10081418,0.00019178,2]
[348626060,1736686239969,-491.28374951,0.00019178,2]
[348626062,1736686239979,-500.0,0.00019178,2]
[348626064,1736686239989,-500.0,0.00019178,2]
[348626066,1736686239998,-500.0,0.00019178,2]
[348626069,1736686240007,-1051.13,0.00019178,2]
[348626072,1736686240017,-2645.65,0.00019178,2]
[348626074,1736686240026,-500.0,0.00019178,2]
[348626076,1736686240036,-1042.49,0.00019178,2]
[348626078,1736686240046,-500.0,0.00019178,2]
[348626080,1736686240055,-468.58761885,0.00019178,2]
[348626082,1736686240064,-1085.22,0.00019178,2]
[348626084,1736686240072,-893.86,0.00019178,2]
[348626086,1736686240082,-707.21,0.00019178,2]
[348626088,1736686240091,-871.05,0.00019178,2]
[348626090,1736686240101,-500.0,0.00019178,2]
[348626092,1736686240110,-1120.54,0.00019178,2]
[348626095,1736686240120,-500.0,0.00019178,2]
[348626096,1736686240129,-500.0,0.00019178,2]
[348626098,1736686240139,-2442.14,0.00019178,2]
[348626101,1736686240148,-500.0,0.00019178,2]
[348626103,1736686240157,-500.0,0.00019178,2]
[348626105,1736686240167,-780.18,0.00019178,2]
[348626106,1736686240176,-500.0,0.00019178,2]
[348626109,1736686240185,-164.455702,0.00019178,2]
[348626110,1736686240195,-535.0,0.00019319,2]
[348626112,1736686240205,-2073.0,0.00019319,2]
[348626114,1736686240214,-2316.0,0.00019319,2]
[348626116,1736686240224,-706.76,0.00019452,3]
[348626118,1736686240234,-500.0,0.00019452,3]
[348626120,1736686240243,-500.0,0.00019452,3]
[348626122,1736686240253,-182.17404814,0.00019452,3]
[348626124,1736686240262,-500.0,0.00019452,3]
[348626126,1736686240272,-500.0,0.00019452,3]
[348626129,1736686240282,-500.0,0.00019452,3]
[348626131,1736686240292,-500.0,0.00019452,3]
[348626132,1736686240301,-372.91937508,0.00019452,3]
[348626134,1736686240310,-500.0,0.00019452,3]
[348626136,1736686240319,-500.0,0.00019452,3]
[348626138,1736686240328,-735.3,0.00019452,3]
[348626141,1736686240338,-500.0,0.00019452,3]
[348626143,1736686240348,-500.0,0.00019452,3]
[348626145,1736686240357,-5741.83,0.00019452,3]
[348626147,1736686240367,-639.61,0.00019452,3]
[348626149,1736686240376,-500.0,0.00019452,3]
[348626151,1736686240386,-500.0,0.00019452,3]
[348626153,1736686240395,-500.0,0.00019452,3]
[348626155,1736686240404,-500.0,0.00019452,3]
[348626157,1736686240414,-847.8,0.00019452,3]
[348626159,1736686240423,-500.0,0.00019452,3]
[348626161,1736686240433,-1063.94,0.00019452,3]
[348626163,1736686240443,-500.0,0.00019452,3]
[348626165,1736686240453,-500.0,0.00019452,3]
[348626167,1736686240462,-735.47,0.00019452,3]
[348626169,1736686240471,-500.0,0.00019452,3]
[348626171,1736686240481,-500.0,0.00019452,3]
[348626173,1736686240489,-641.36,0.00019452,3]
[348626175,1736686240498,-500.0,0.00019452,3]
[348626177,1736686240507,-500.0,0.00019452,3]
[348626178,1736686240516,-500.0,0.00019452,3]
[348626181,1736686240526,-500.0,0.00019452,3]
[348626183,1736686240535,-500.0,0.00019452,3]
[348626185,1736686240544,-533.2,0.00019452,3]
[348626187,1736686240554,-322.61716554,0.00019452,3]
[348626189,1736686240563,-500.0,0.00019452,3]
[348626191,1736686240573,-509.61631367,0.00019452,3]
[348626193,1736686240585,-500.0,0.00019452,3]
[348626195,1736686240594,-5478.39,0.00019452,3]
[348626197,1736686240603,-23613.97129725,0.00019452,3]
[348626232,1736686240916,-1506.97870275,0.00019452,3]
[348626234,1736686240925,-500.0,0.00019452,3]
[348626236,1736686240934,-500.0,0.00019452,3]
[348626238,1736686240943,-1029.01,0.00019452,3]
[348626240,1736686240952,-606.01,0.00019452,3]
[348626242,1736686240961,-4163.44,0.00019452,3]
[348626244,1736686240971,-1156.94,0.00019452,3]
[348626246,1736686240980,-702.78,0.00019452,3]
[348626248,1736686240989,-500.0,0.00019452,3]
[348626250,1736686240998,-1164.97,0.00019452,3]
[348626252,1736686241007,-6228.58,0.00019452,2]
[348626254,1736686241017,-998.29,0.00019452,3]
[348626256,1736686241026,-3758.06,0.00019452,3]
[348626258,1736686241035,-1171.27,0.00019452,3]
[348626260,1736686241044,-500.0,0.00019452,3]
[348626262,1736686241054,-500.0,0.00019452,3]
[348626264,1736686241063,-731.81,0.00019452,3]
[348626266,1736686241072,-500.0,0.00019452,3]
[348626268,1736686241082,-188.77679239,0.00019452,3]
[348626270,1736686241091,-500.0,0.00019452,3]
[348626272,1736686241101,-500.0,0.00019452,3]
[348626274,1736686241110,-500.0,0.00019452,3]
[348626276,1736686241120,-788.06,0.00019452,3]
[348626278,1736686241129,-1028.22,0.00019452,3]
[348626280,1736686241138,-500.0,0.00019452,3]
[348626282,1736686241148,-500.0,0.00019452,3]
[348626284,1736686241157,-500.0,0.00019452,3]
[348626286,1736686241166,-2076.66,0.00019452,3]
[348626288,1736686241176,-2383.94,0.00019452,3]